bitfinex/quotes_SOLUSD_20241022
["timestamp","ask_amount","ask_price","bid_price","bid_amount"]
[1729557463384,6.1107,163.65,163.55,22.001]
[1729557463573,16.3965,163.76,163.57,46.72039846]
[1729557463896,11.3605827,163.75,163.6,46.72039846]
[1729557464105,6.1067,163.76,163.63,46.72039846]
[1729557464269,15.2618,163.81,163.63,46.72039846]
[1729557464468,4.37122397,163.8,163.63,46.72039846]
[1729557464699,6.1053,163.8,163.67,15.4401]
[1729557464882,13.24669248,163.85,163.69,46.72039846]
[1729557465074,6.102,163.88,163.69,46.72039846]
[1729557465277,6.1051,163.8,163.67,15.4401]
[1729557465576,15.2561,163.87,163.67,15.4401]
[1729557465775,21.8825,163.89,163.72,46.72039846]
[1729557465776,6.1032,163.85,163.72,46.72039846]
[1729557466203,6.1025,163.87,163.72,46.72039846]
[1729557466391,6.3908,163.89,163.72,46.72039846]
[1729557466589,6.1036,163.84,163.72,46.72039846]
[1729557466794,6.1027,163.87,163.72,46.72039846]
[1729557467099,6.1036,163.84,163.72,46.72039846]
[1729557467271,6.1025,163.87,163.72,46.72039846]
[1729557467698,6.1017,163.89,163.75,46.72039846]
[1729557468700,22.21279284,163.92,163.75,46.72039846]
[1729557469298,22.21279284,163.92,163.69,46.82039846]
[1729557469299,6.1028,163.86,163.72,46.72039846]
[1729557469601,20.2,163.91,163.69,46.72039846]
[1729557469916,0.1,163.89,163.69,46.72039846]
[1729557470111,6.1047,163.81,163.67,15.4401]
[1729557470397,6.1038,163.84,163.67,15.4401]
[1729557470589,20.0,163.86,163.67,15.4401]
[1729557471390,6.1048,163.81,163.67,15.4401]
[1729557471895,6.1039,163.83,163.69,46.72039846]
[1729557472198,20.0,163.88,163.72,46.72039846]
[1729557472394,6.1032,163.85,163.72,46.72039846]
[1729557472997,15.8584358,163.92,163.72,46.72039846]
[1729557473187,6.102,163.88,163.75,46.72039846]
[1729557473897,6.1017,163.89,163.75,46.72039846]
[1729557474199,0.6063358,163.92,163.75,46.72039846]
[1729557474499,6.1029,163.86,163.75,46.72039846]
[1729557474705,6.102,163.88,163.75,46.72039846]
[1729557475092,0.6063358,163.92,163.75,46.72039846]
[1729557475493,6.1034,163.85,163.72,46.72039846]
[1729557475699,6.1023,163.88,163.75,46.72039846]
[1729557476002,0.6063358,163.92,163.78,46.72039846]
[1729557476205,6.1017,163.89,163.78,46.72039846]
[1729557477192,20.6063358,163.92,163.75,46.72039846]
[1729557477396,6.103,163.86,163.76,23.776884]
[1729557477800,6.1018,163.89,163.76,23.776884]
[1729557478100,6.1014,163.9,163.79,23.776884]
[1729557478514,6.1017,163.89,163.79,23.776884]
[1729557478881,13.91490383,163.92,163.79,23.776884]
[1729557479083,6.1013,163.9,163.79,23.776884]
[1729557479512,13.91490383,163.92,163.79,23.776884]
[1729557479681,6.1017,163.89,163.79,23.776884]
[1729557480303,6.1013,163.9,163.79,23.776884]
[1729557480602,6.1023,163.88,163.79,23.776884]
[1729557480805,6.1021,163.88,163.79,23.776884]
[1729557481616,13.91490383,163.92,163.79,23.776884]
[1729557481786,6.1023,163.88,163.79,23.776884]
[1729557481986,13.91490383,163.92,163.79,23.776884]
[1729557482208,6.1009,163.91,163.79,23.776884]
[1729557482513,6.1009,163.91,163.82,23.776884]
[1729557482810,6.1018,163.89,163.82,23.776884]
[1729557483012,6.1018,163.89,163.82,22.776884]
[1729557483310,13.91490383,163.92,163.82,22.776884]
[1729557483693,6.1013,163.9,163.82,22.776884]
[1729557484084,20.01570383,163.92,163.82,22.776884]
[1729557484505,13.91490383,163.92,163.82,22.776884]
[1729557484709,13.91490383,163.92,163.78,21.8664]
[1729557484710,29.16650383,163.92,163.78,21.8664]
[1729557484897,6.1012,163.91,163.78,68.58679846]
[1729557485095,6.1016,163.89,163.78,68.58679846]
[1729557485297,6.102,163.88,163.78,68.58679846]
[1729557486289,13.91490383,163.92,163.79,23.776884]
[1729557486601,6.1016,163.89,163.79,23.776884]
[1729557487023,13.91490383,163.92,163.79,23.776884]
[1729557487485,6.1016,163.89,163.79,23.776884]
[1729557490439,6.1014,163.9,163.79,23.776884]
[1729557490740,13.91490383,163.92,163.79,23.776884]
[1729557490933,6.1017,163.89,163.79,23.776884]
[1729557491316,13.91490383,163.92,163.79,23.776884]
[1729557491616,6.1035,163.84,163.73,6.1731]
[1729557492122,15.2532,163.9,163.73,6.1731]
[1729557492328,6.1026,163.87,163.74,28.64055136]
[1729557492629,30.0,163.82,163.74,28.64055136]
[1729557492835,30.0,163.82,163.75,23.776884]
[1729557493417,6.102,163.88,163.78,23.776884]
[1729557493627,6.103,163.86,163.78,23.776884]
[1729557493820,0.6063358,163.92,163.78,23.776884]
[1729557494011,0.6063358,163.92,163.74,28.64055136]
[1729557494012,30.0,163.81,163.73,6.1731]
[1729557494916,30.0,163.81,163.74,28.64055136]
[1729557495219,6.1018,163.89,163.78,23.776884]
[1729557495415,6.102,163.88,163.78,23.776884]
[1729557496119,6.1012,163.9,163.78,23.776884]
[1729557496832,6.1021,163.88,163.78,23.776884]
[1729557497135,6.1016,163.9,163.78,23.776884]
[1729557497712,0.6063358,163.92,163.78,23.776884]
[1729557498719,6.102,163.89,163.78,23.776884]
[1729557501639,0.6063358,163.92,163.74,28.64055136]
[1729557501940,6.1038,163.84,163.73,6.1731]
[1729557502148,15.2532,163.9,163.73,6.1731]
[1729557502331,15.2532,163.9,163.74,28.64055136]
[1729557502940,6.1026,163.87,163.74,28.64055136]
[1729557503118,15.2532,163.9,163.74,28.64055136]
[1729557503320,6.1027,163.86,163.75,23.776884]
[1729557503524,15.2532,163.9,163.75,23.776884]
[1729557503851,6.1025,163.87,163.75,23.776884]
[1729557504536,6.1016,163.89,163.75,23.776884]
[1729557504733,6.1036,163.84,163.74,23.776884]
[1729557505250,6.1038,163.84,163.73,6.1731]
[1729557506225,6.104,163.83,163.73,6.1731]
[1729557506736,6.1032,163.85,163.73,6.1731]
[1729557507139,30.0,163.8,163.73,6.1731]
[1729557507335,30.0,163.8,163.74,23.776884]
[1729557507846,30.0,163.8,163.74,52.41743536]
[1729557508029,6.1022,163.88,163.78,23.776884]
[1729557508430,0.6063358,163.92,163.78,23.776884]
[1729557508431,6.1017,163.89,163.78,23.776884]
[1729557509230,6.1009,163.91,163.78,23.776884]
[1729557509433,0.6063358,163.92,163.78,23.776884]
[1729557509635,4.40057661,163.91,163.78,23.776884]
[1729557509852,6.1027,163.87,163.78,23.776884]
[1729557513226,6.1012,163.91,163.78,23.776884]
[1729557513434,0.6063358,163.92,163.81,23.776884]
[1729557513654,0.6063358,163.92,163.85,23.776884]
[1729557514726,6.1015,163.9,163.85,23.776884]
[1729557515142,6.1025,163.87,163.78,15.7404]
[1729557515363,36.1029,163.86,163.78,15.7404]
[1729557515653,30.0,163.86,163.78,15.7404]
[1729557516551,30.0,163.86,163.68,0.1]
[1729557516552,30.0,163.86,163.68,22.0274]
[1729557516864,6.1053,163.8,163.68,22.0274]
[1729557517033,30.0,163.79,163.68,22.0274]
[1729557517542,36.1054,163.79,163.68,22.0274]
[1729557517931,36.1054,163.79,163.69,23.776884]
[1729557518343,30.0,163.79,163.69,23.776884]
[1729557521054,30.0,163.79,163.72,23.776884]
[1729557521356,30.0,163.79,163.75,23.776884]
[1729557521653,6.1408,163.89,163.75,23.776884]
[1729557521857,4.40923307,163.88,163.75,23.776884]
[1729557522043,12.2425,163.89,163.75,23.776884]
[1729557522357,4.40943733,163.88,163.75,23.776884]
[1729557522559,12.2425,163.89,163.75,23.776884]
[1729557522757,4.40829424,163.88,163.75,23.776884]
[1729557522944,6.1017,163.89,163.75,23.776884]
[1729557523444,20.6063358,163.92,163.75,23.776884]
[1729557523640,6.1032,163.85,163.75,23.776884]
[1729557523840,6.1032,163.85,163.71,28.64055136]
[1729557524259,20.0,163.89,163.71,28.64055136]
[1729557524458,11.46073154,163.88,163.71,28.64055136]
[1729557524663,11.46073154,163.88,163.69,0.1]
[1729557524664,6.1034,163.85,163.7,0.1]
[1729557524965,6.1034,163.85,163.69,20.1]
[1729557525151,17.1927418,163.94,163.71,28.64055136]
[1729557525345,20.0,163.9,163.71,28.64055136]
[1729557525561,11.46037994,163.89,163.72,20.0]
[1729557525858,4.40783844,163.88,163.77,28.64055136]
[1729557526059,6.6105,163.94,163.81,43.776884]
[1729557526239,6.099,163.96,163.81,43.776884]
[1729557526558,15.2451,163.99,163.8,23.776884]
[1729557526760,6.1004,163.93,163.8,23.776884]
[1729557527354,6.0992,163.96,163.8,23.776884]
[1729557529063,6.0987,163.97,163.81,20.0]
[1729557529238,6.0987,163.97,163.82,23.776884]
[1729557529769,6.3655,164.0,163.84,23.776884]
[1729557530063,12.463,164.0,163.84,23.776884]
[1729557531341,6.2021,164.05,163.87,36.5539]
[1729557531546,6.2021,164.05,163.88,23.776884]
[1729557531867,6.2021,164.05,163.88,52.41743536]
[1729557532043,6.0965,164.03,163.9,23.776884]
[1729557532358,6.2021,164.05,163.9,23.776884]
[1729557532570,6.0962,164.04,163.9,23.776884]
[1729557532739,6.0965,164.03,163.9,23.776884]
[1729557533264,6.2021,164.05,163.87,16.5539]
[1729557533445,6.0974,164.01,163.87,16.5539]
[1729557533963,20.0,164.04,163.87,16.5539]
[1729557534141,6.0964,164.03,163.87,17.94873388]
[1729557534342,6.0964,164.03,163.88,20.0]
[1729557534958,6.0964,164.03,163.89,23.776884]
[1729557535546,20.0,164.04,163.89,23.776884]
[1729557536047,6.0964,164.03,163.89,23.776884]
[1729557536969,20.0,164.04,163.89,23.776884]
[1729557537144,20.0,164.04,163.88,20.0]
[1729557537476,6.0965,164.03,163.88,20.0]
[1729557538045,20.0,164.04,163.88,20.0]
[1729557538255,6.0971,164.02,163.89,23.776884]
[1729557538964,6.0972,164.01,163.89,23.776884]
[1729557539342,20.0,164.04,163.89,23.776884]
[1729557539542,20.0,164.04,163.88,20.0]
[1729557539769,20.0,164.04,163.87,17.94873388]
[1729557539966,6.0984,163.98,163.88,20.0]
[1729557540269,20.0,164.04,163.88,20.0]
[1729557540446,6.0975,164.01,163.88,20.0]
[1729557540649,6.0977,164.0,163.89,23.776884]
[1729557541469,20.0,164.04,163.88,23.776884]
[1729557541657,6.0987,163.97,163.88,23.776884]
[1729557542241,6.0992,163.96,163.88,23.776884]
[1729557542574,6.0992,163.96,163.85,20.0]
[1729557542779,6.0986,163.98,163.85,20.0]
[1729557543266,20.0,164.01,163.85,20.0]
[1729557543471,6.0987,163.97,163.85,20.0]
[1729557543865,6.099,163.96,163.86,23.776884]
[1729557544073,6.0986,163.98,163.86,23.776884]
[1729557544243,20.0,164.01,163.86,23.776884]
[1729557544441,6.0975,164.0,163.86,23.776884]
[1729557544871,6.2021,164.05,163.87,20.0]
[1729557545051,6.2021,164.05,163.9,23.776884]
[1729557545241,6.0978,164.0,163.9,23.776884]
[1729557546271,20.0,164.04,163.9,23.776884]
[1729557546447,6.0982,163.99,163.9,23.776884]
[1729557546870,15.2411,164.03,163.9,23.776884]
[1729557547062,6.0987,163.97,163.9,23.776884]
[1729557547255,6.0998,163.94,163.84,6.5784]
[1729557548172,6.0987,163.97,163.84,6.5784]
[1729557548384,20.0,164.01,163.84,6.5784]
[1729557548592,6.1002,163.93,163.84,6.5784]
[1729557548766,30.0,163.9,163.84,6.5784]
[1729557550989,6.0983,163.98,163.85,23.776884]
[1729557551177,6.2021,164.05,163.87,23.776884]
[1729557551381,6.2021,164.05,163.91,23.776884]
[1729557551580,6.2021,164.05,163.93,23.776884]
[1729557551970,12.2978,164.05,163.93,23.776884]
[1729557552367,6.2021,164.05,163.93,23.776884]
[1729557552978,6.0984,163.98,163.87,20.0]
[1729557553174,6.0986,163.98,163.87,20.0]
[1729557553487,6.0989,163.97,163.87,20.0]
[1729557553677,20.0,164.02,163.87,20.0]
[1729557553871,6.0964,164.03,163.87,20.0]
[1729557554072,0.1,164.03,163.86,16.2954]
[1729557554272,20.0,164.0,163.86,16.2954]
[1729557554778,30.0,163.93,163.86,16.2954]
[1729557555161,6.0984,163.98,163.86,16.2954]
[1729557555568,6.0975,164.0,163.87,23.776884]
[1729557555864,15.2429,164.01,163.87,23.776884]
[1729557556079,6.0979,163.99,163.87,23.776884]
[1729557556286,20.0,164.0,163.87,23.776884]
[1729557556690,6.1002,163.93,163.81,15.1699]
[1729557556868,6.1005,163.92,163.81,15.1699]
[1729557557299,6.1012,163.9,163.81,15.1699]
[1729557557588,30.0,163.91,163.81,15.1699]
[1729557557894,6.1016,163.9,163.76,22.0776]
[1729557558071,30.0,163.91,163.76,22.0776]
[1729557558274,36.1016,163.89,163.76,22.0776]
[1729557558991,6.1025,163.87,163.76,22.0776]
[1729557559195,30.0,163.89,163.74,6.34745264]
[1729557559505,30.0,163.85,163.72,6.0733]
[1729557559672,6.1035,163.84,163.72,6.0733]
[1729557560095,30.0,163.85,163.72,6.0733]
[1729557560301,30.0,163.83,163.73,28.64055136]
[1729557560793,30.0,163.83,163.75,20.0]
[1729557561090,30.0,163.83,163.76,23.776884]
[1729557561270,20.0,163.93,163.76,23.776884]
[1729557561467,6.102,163.88,163.76,23.776884]
[1729557562293,6.1028,163.86,163.76,23.776884]
[1729557563479,6.1023,163.88,163.76,23.776884]
[1729557563889,15.2513,163.92,163.76,23.776884]
[1729557564086,6.1024,163.87,163.76,23.776884]
[1729557564597,21.8324,163.94,163.78,23.776884]
[1729557564775,6.1009,163.91,163.78,23.776884]
[1729557564977,0.1,163.91,163.72,6.0733]
[1729557565202,6.1048,163.81,163.68,6.2421]
[1729557565377,6.4565,163.89,163.68,6.2421]
[1729557565378,6.1042,163.83,163.68,6.2421]
[1729557565702,30.0,163.8,163.68,6.2421]
[1729557566074,30.0,163.8,163.68,34.88265136]
[1729557566296,30.0,163.8,163.69,17.92125204]
[1729557566803,30.0,163.8,163.72,23.776884]
[1729557569192,6.1031,163.86,163.72,23.776884]
[1729557569502,6.3565,163.89,163.7,28.67328326]
[1729557569503,6.3565,163.89,163.74,23.776884]
[1729557570092,6.102,163.88,163.74,23.776884]
[1729557570296,6.1027,163.87,163.74,23.776884]
[1729557570702,6.1023,163.88,163.74,23.776884]
[1729557570895,6.1024,163.87,163.74,23.776884]
[1729557571608,6.1031,163.85,163.74,23.776884]
[1729557571991,20.0,163.88,163.72,20.0]
[1729557572303,15.255,163.88,163.68,35.01538326]
[1729557572483,6.104,163.83,163.68,34.91538326]
[1729557572683,6.104,163.83,163.68,35.01538326]
[1729557573085,6.104,163.83,163.68,34.91538326]
[1729557573300,6.104,163.83,163.72,23.776884]
[1729557573699,30.0,163.79,163.72,23.776884]
[1729557589714,6.1028,163.86,163.72,23.776884]
[1729557590217,6.1022,163.88,163.74,23.776884]
[1729557590423,6.1022,163.88,163.76,17.90664333]
[1729557590621,6.3565,163.89,163.77,23.776884]
[1729557590928,12.4581,163.89,163.79,23.776884]
[1729557592112,6.1022,163.88,163.79,23.776884]
[1729557592320,6.102,163.88,163.79,23.776884]
[1729557593008,6.3565,163.89,163.79,23.776884]
[1729557593203,12.4582,163.89,163.79,23.776884]
[1729557595227,6.102,163.88,163.79,23.776884]
[1729557597634,12.4581,163.89,163.79,23.776884]
[1729557601444,6.102,163.88,163.79,23.776884]
[1729557602519,6.1005,163.93,163.82,17.90664333]
[1729557602731,6.1005,163.93,163.83,23.776884]
[1729557602933,6.1002,163.93,163.83,23.776884]
[1729557604122,6.5672,163.94,163.83,23.776884]
[1729557604326,6.5273,163.98,163.86,17.90664333]
[1729557604630,4.41378824,163.97,163.89,23.776884]
[1729557604828,6.5273,163.98,163.89,23.776884]
[1729557605745,12.6256,163.98,163.89,23.776884]
[1729557606118,12.6256,163.98,163.88,23.776884]
[1729557606546,6.5273,163.98,163.83,6.1968]
[1729557606756,6.1002,163.93,163.83,6.1968]
[1729557606925,6.5273,163.98,163.83,6.1968]
[1729557606926,6.1006,163.92,163.83,6.1968]
[1729557607124,6.1012,163.91,163.8,34.00124333]
[1729557607322,6.1021,163.88,163.8,16.0946]
[1729557607539,36.1016,163.89,163.8,16.0946]
[1729557608434,30.0,163.87,163.81,23.776884]
[1729557611167,30.0,163.87,163.75,21.4908]
[1729557611448,20.0,163.86,163.71,27.83813507]
[1729557611634,6.1048,163.81,163.71,27.83813507]
[1729557611839,6.1048,163.81,163.71,21.4908]
[1729557612261,6.1039,163.83,163.71,21.4908]
[1729557612548,30.0,163.8,163.71,21.4908]
[1729557612751,30.0,163.8,163.73,17.90664333]
[1729557612957,6.1031,163.86,163.74,23.776884]
[1729557613245,12.1903,163.88,163.76,23.776884]
[1729557613654,30.0,163.79,163.78,23.776884]
[1729557613832,16.1109,163.91,163.78,23.776884]
[1729557614030,6.1012,163.9,163.78,23.776884]
[1729557615627,22.2118,163.91,163.79,17.90664333]
[1729557615827,6.1009,163.91,163.8,23.776884]
[1729557616562,6.1516,163.92,163.79,23.776884]
[1729557616736,6.1022,163.88,163.79,23.776884]
[1729557617663,6.1024,163.87,163.79,23.776884]
[1729557618159,6.102,163.88,163.79,23.776884]
[1729557618331,6.1015,163.9,163.79,23.776884]
[1729557618734,6.1016,163.89,163.79,23.776884]
[1729557620451,6.1012,163.91,163.79,23.776884]
[1729557620653,6.1013,163.9,163.79,23.776884]
[1729557621159,12.2525,163.92,163.79,23.776884]
[1729557621331,6.1011,163.91,163.8,15.0705]
[1729557621932,6.1014,163.9,163.81,23.776884]
[1729557623360,6.1516,163.92,163.8,15.0705]
[1729557623564,6.1028,163.86,163.76,16.1075]
[1729557623764,6.1038,163.84,163.76,16.1075]
[1729557624073,30.0,163.82,163.72,16.1075]
[1729557624241,6.105,163.8,163.68,16.1075]
[1729557624444,6.3401,163.81,163.68,16.1075]
[1729557624953,6.1061,163.78,163.68,16.1075]
[1729557625268,36.1064,163.77,163.68,16.1075]
[1729557626039,30.0,163.77,163.68,16.1075]
[1729557626243,30.0,163.77,163.63,27.5794761]
[1729557626540,6.1073,163.74,163.63,27.5794761]
[1729557626741,30.0,163.73,163.63,21.5574761]
[1729557626965,30.0,163.73,163.63,15.2072]
[1729557627268,36.1079,163.73,163.63,15.2072]
[1729557627638,30.0,163.73,163.63,15.2072]
[1729557628358,6.1088,163.7,163.58,6.022]
[1729557628560,30.0,163.69,163.58,6.022]
[1729557628866,36.1091,163.69,163.58,6.022]
[1729557629271,30.0,163.69,163.58,6.022]
[1729557629467,30.0,163.69,163.59,23.776884]
[1729557630264,30.0,163.69,163.56,15.6923]
[1729557630466,6.1101,163.67,163.56,15.6923]
[1729557630665,36.1102,163.66,163.56,15.6923]
[1729557632164,30.0,163.66,163.57,23.776884]
[1729557633251,30.0,163.66,163.59,23.776884]
[1729557634057,6.1097,163.68,163.59,23.776884]
[1729557634858,6.1087,163.7,163.59,23.776884]
[1729557635055,6.1087,163.7,163.59,20.0]
[1729557635257,6.2705,163.71,163.6,23.776884]
[1729557635667,12.3789,163.71,163.6,23.776884]
[1729557635842,6.2705,163.71,163.6,23.776884]
[1729557636048,6.1075,163.74,163.6,52.41336854]
[1729557636264,6.1079,163.73,163.6,52.41336854]
[1729557636979,6.0905,163.76,163.63,20.0]
[1729557637157,6.1068,163.75,163.64,23.776884]
[1729557640987,6.0905,163.76,163.61,6.5519]
[1729557641194,6.1094,163.69,163.57,6.0172]
[1729557641681,6.1094,163.69,163.57,34.65368454]
[1729557642197,6.0905,163.76,163.57,34.65368454]
[1729557642388,6.1076,163.73,163.61,23.776884]
[1729557642685,6.108,163.72,163.61,23.776884]
[1729557643559,6.1073,163.74,163.61,23.776884]
[1729557643781,6.1076,163.74,163.61,23.776884]
[1729557643985,6.1077,163.73,163.61,23.776884]
[1729557644485,6.0905,163.76,163.61,23.776884]
[1729557645182,6.1082,163.72,163.61,23.776884]
[1729557645678,6.1084,163.71,163.61,23.776884]
[1729557646262,6.1084,163.71,163.61,41.71663126]
[1729557646479,6.0905,163.76,163.61,41.71663126]
[1729557646691,6.1074,163.74,163.61,41.71663126]
[1729557646884,6.1076,163.73,163.64,23.776884]
[1729557647866,6.1072,163.74,163.64,23.776884]
[1729557648960,12.1973,163.76,163.66,23.776884]
[1729557649164,6.1069,163.75,163.66,23.776884]
[1729557650878,12.1973,163.76,163.66,23.776884]
[1729557651188,6.107,163.75,163.66,23.776884]
[1729557654887,6.0905,163.76,163.66,23.776884]
[1729557655085,6.1057,163.78,163.69,17.93974726]
[1729557655397,6.4697,163.8,163.66,6.5139]
[1729557655398,6.1053,163.8,163.72,23.776884]
[1729557655895,6.1046,163.81,163.72,23.776884]
[1729557656093,6.0547,163.84,163.73,17.93974726]
[1729557656281,6.0547,163.84,163.74,23.776884]
[1729557656594,6.1023,163.87,163.76,23.776884]
[1729557656792,12.2793,163.88,163.78,23.776884]
[1729557657168,6.1024,163.87,163.78,23.776884]
[1729557657604,22.5179,163.93,163.78,23.776884]
[1729557657892,22.5179,163.93,163.82,23.776884]
[1729557658087,6.1005,163.92,163.82,23.776884]
[1729557658693,6.1009,163.91,163.82,23.776884]
[1729557660277,6.1011,163.91,163.82,23.776884]
[1729557660774,22.5179,163.93,163.82,23.776884]
[1729557661166,6.101,163.91,163.82,23.776884]
[1729557661365,6.4097,163.93,163.82,23.776884]
[1729557661591,6.0995,163.95,163.86,23.776884]
[1729557661898,6.6241,163.97,163.86,23.776884]
[1729557662077,6.1003,163.93,163.86,23.776884]
[1729557663194,6.6241,163.97,163.87,17.93974726]
[1729557663398,6.0987,163.97,163.88,23.776884]
[1729557663789,6.0979,163.99,163.89,17.93974726]
[1729557663993,6.0979,163.99,163.9,23.776884]
[1729557664296,6.4039,164.01,163.92,23.776884]
[1729557664487,6.0979,163.99,163.92,23.776884]
[1729557664681,6.0988,163.97,163.89,17.93974726]
[1729557664989,6.4039,164.01,163.89,17.93974726]
[1729557664990,6.4039,164.01,163.9,23.776884]
[1729557665293,6.0983,163.98,163.9,23.776884]
[1729557665794,6.0976,164.0,163.9,23.776884]
[1729557665983,6.0976,164.0,163.92,23.776884]
[1729557666182,6.0976,164.0,163.9,23.776884]
[1729557667679,20.0,164.0,163.85,16.3123]
[1729557667984,6.4039,164.01,163.85,16.3123]
[1729557668196,6.4039,164.01,163.85,34.25204726]
[1729557668587,6.0983,163.98,163.85,34.25204726]
[1729557669089,6.4039,164.01,163.86,23.776884]
[1729557669487,6.0986,163.98,163.86,23.776884]
[1729557670403,6.1,163.94,163.85,16.3123]
[1729557670702,6.0989,163.97,163.85,16.3123]
[1729557671114,20.0,164.0,163.85,16.3123]
[1729557671284,6.0996,163.95,163.85,16.3123]
[1729557671900,6.0996,163.95,163.86,23.776884]
[1729557672099,15.2448,163.99,163.86,23.776884]
[1729557672100,6.0979,163.99,163.87,17.93974726]
[1729557672287,20.0,164.0,163.88,23.776884]
[1729557672602,6.0987,163.97,163.88,23.776884]
[1729557672806,6.0982,163.99,163.88,23.776884]
[1729557673406,6.0983,163.98,163.88,23.776884]
[1729557673593,6.0981,163.99,163.88,23.776884]
[1729557673898,6.4039,164.01,163.88,23.776884]
[1729557673899,6.0983,163.98,163.88,23.776884]
[1729557674107,6.4039,164.01,163.88,23.776884]
[1729557674108,6.0993,163.96,163.88,23.776884]
[1729557674289,6.4039,164.01,163.88,23.776884]
[1729557674490,6.0981,163.99,163.88,23.776884]
[1729557674699,6.4039,164.01,163.88,23.776884]
[1729557675003,6.0983,163.98,163.88,23.776884]
[1729557675203,6.0965,164.03,163.92,23.776884]
[1729557676991,6.0957,164.05,163.94,23.776884]
[1729557677400,6.0964,164.04,163.94,23.776884]
[1729557681483,15.8422358,164.09,163.94,23.776884]
[1729557681709,6.0955,164.06,163.94,23.776884]
[1729557681910,6.0964,164.04,163.94,23.776884]
[1729557682708,0.6063358,164.09,163.96,23.776884]
[1729557682888,0.6063358,164.09,164.0,23.776884]
[1729557683087,0.6063358,164.09,164.04,23.776884]
[1729557685091,0.6063358,164.09,164.07,17.93974726]
[1729557685310,0.6063358,164.09,164.08,23.776884]
[1729557685692,0.6063358,164.25,164.11,23.776884]
[1729557686014,6.0886,164.24,164.11,41.71663126]
[1729557686214,6.089,164.23,164.11,41.71663126]
[1729557686398,0.6063358,164.25,164.11,41.71663126]
[1729557687233,0.6063358,164.25,164.13,17.93974726]
[1729557687515,0.6063358,164.25,164.14,23.776884]
[1729557687694,6.6947358,164.25,164.14,23.776884]
[1729557688016,0.6063358,164.25,164.14,23.776884]
[1729557688200,0.6063358,164.25,164.16,23.776884]
[1729557689714,6.0888,164.24,164.1,24.31684726]
[1729557689918,6.089,164.23,164.1,24.31684726]
[1729557690498,6.09,164.21,164.1,6.3771]
[1729557690814,0.6063358,164.25,164.1,6.3771]
[1729557691014,6.0897,164.21,164.1,6.3771]
[1729557691319,6.0895,164.22,164.1,6.3771]
[1729557691515,0.6063358,164.25,164.1,6.3771]
[1729557691816,15.8274358,164.25,164.1,6.3771]
[1729557691998,15.4861,164.24,164.09,15.1987]
[1729557692204,6.0914,164.17,164.09,15.1987]
[1729557692501,15.4861,164.24,164.09,15.1987]
[1729557692706,15.4861,164.24,164.06,6.3976]
[1729557692899,15.4861,164.24,164.04,1.39338837]
[1729557692900,6.0916,164.16,164.04,1.39338837]
[1729557693100,12.5507,164.17,164.04,1.39338837]
[1729557693315,6.4594,164.17,164.05,16.195]
[1729557693701,6.0927,164.13,164.05,16.195]
[1729557694217,6.0927,164.13,164.01,21.8929]
[1729557694633,6.4594,164.17,164.01,21.8929]
[1729557694800,6.4594,164.17,164.02,23.776884]
[1729557695306,30.0,164.12,164.02,23.776884]
[1729557695510,30.0,164.12,164.03,20.0]
[1729557695821,30.0,164.12,164.05,20.0]
[1729557696025,30.0,164.12,164.06,23.776884]
[1729557696227,6.5219,164.22,164.08,23.776884]
[1729557696526,6.0903,164.2,164.08,23.776884]
[1729557697110,6.5219,164.22,164.08,23.776884]
[1729557697422,20.0,164.21,164.08,23.776884]
[1729557697600,23.776884,164.2,164.01,21.8929]